[Event "Swedish Chess Championship 2019: Weekend 1"]
[Site "Stiga Sports Arena, Arenatorget 1, Eskilstuna, Sweden"]
[Date "2019.07.07"]
[Round "4.5"]
[White "Eriksson, Kristian"]
[Black "Svorono, Gabriel"]
[Result "1-0"]
[TimeControl "90 minutes + 30 seconds per move from move one"]
[WhiteFideId "1705172"]
[BlackFideId "1715623"]
[WhiteElo "2123"]
[BlackElo "2098"]

1. e4 {[%clk 01:30:55]} {[%emt 00:00:03]} e5 {[%clk 01:28:57]} {[%emt
00:02:05]} 2. Nc3 {[%clk 01:30:24]} {[%emt 00:01:00]} Bc5 {[%clk 01:26:52]}
{[%emt 00:02:36]} 3. Nf3 {[%clk 01:27:50]} {[%emt 00:03:03]} d6 {[%clk
01:26:34]} {[%emt 00:00:49]} 4. d4 {[%clk 01:26:06]} {[%emt 00:02:12]} exd4
{[%clk 01:26:38]} {[%emt 00:00:26]} 5. Nxd4 {[%clk 01:26:24]} {[%emt 00:00:13]}
Nf6 {[%clk 01:26:34]} {[%emt 00:00:34]} 6. Bg5 {[%clk 01:21:38]} {[%emt
00:05:15]} h6 {[%clk 01:23:44]} {[%emt 00:03:21]} 7. Bh4 {[%clk 01:19:57]}
{[%emt 00:02:11]} O-O {[%clk 01:23:12]} {[%emt 00:01:02]} 8. Qd3 {[%clk
01:13:59]} {[%emt 00:06:27]} c6 {[%clk 01:17:03]} {[%emt 00:06:41]} 9. O-O-O
{[%clk 01:06:19]} {[%emt 00:08:10]} Re8 {[%clk 01:14:19]} {[%emt 00:03:12]} 10.
f3 {[%clk 01:01:37]} {[%emt 00:05:12]} Nbd7 {[%clk 01:05:10]} {[%emt 00:09:41]}
11. Bg3 {[%clk 00:45:07]} {[%emt 00:17:00]} Nh5 {[%clk 00:49:07]} {[%emt
00:16:33]} 12. Be1 {[%clk 00:41:31]} {[%emt 00:04:05]} a5 {[%clk 00:39:48]}
{[%emt 00:09:51]} 13. Nb3 {[%clk 00:33:16]} {[%emt 00:08:44]} Bb4 {[%clk
00:34:09]} {[%emt 00:06:09]} 14. a3 {[%clk 00:31:58]} {[%emt 00:01:48]} Nc5
{[%clk 00:27:42]} {[%emt 00:06:57]} 15. Nxc5 {[%clk 00:30:25]} {[%emt
00:02:03]} Bxc5 {[%clk 00:28:09]} {[%emt 00:00:04]} 16. Na4 {[%clk 00:26:56]}
{[%emt 00:03:58]} Qe7 {[%clk 00:26:58]} {[%emt 00:01:41]} 17. Nxc5 {[%clk
00:24:38]} {[%emt 00:02:48]} dxc5 {[%clk 00:27:26]} {[%emt 00:00:02]} 18. Qd6
{[%clk 00:23:36]} {[%emt 00:01:32]} Qxd6 {[%clk 00:24:24]} {[%emt 00:03:31]} 19.
Rxd6 {[%clk 00:24:02]} {[%emt 00:00:06]} Nf4 {[%clk 00:24:51]} {[%emt
00:00:01]} 20. Bf2 {[%clk 00:22:40]} {[%emt 00:01:51]} f5 {[%clk 00:23:17]}
{[%emt 00:02:04]} 21. g3 {[%clk 00:19:01]} {[%emt 00:04:11]} Ne6 {[%clk
00:23:43]} {[%emt 00:00:04]} 22. exf5 {[%clk 00:17:49]} {[%emt 00:01:42]} Nd4
{[%clk 00:24:12]} {[%emt 00:00:01]} 23. Bc4+ {[%clk 00:15:44]} {[%emt
00:02:35]} Kh8 {[%clk 00:24:09]} {[%emt 00:00:31]} 24. f6 {[%clk 00:12:27]}
{[%emt 00:03:48]} gxf6 {[%clk 00:23:31]} {[%emt 00:01:08]} 25. Rxf6 {[%clk
00:12:21]} {[%emt 00:00:36]} Kg7 {[%clk 00:23:05]} {[%emt 00:00:55]} 26. Rf7+
{[%clk 00:11:08]} {[%emt 00:01:44]} Kg6 {[%clk 00:23:33]} {[%emt 00:00:03]} 27.
Bxd4 {[%clk 00:07:53]} {[%emt 00:03:45]} cxd4 {[%clk 00:23:52]} {[%emt
00:00:05]} 28. Rf4 {[%clk 00:07:50]} {[%emt 00:00:37]} Re3 {[%clk 00:23:07]}
{[%emt 00:01:13]} 29. Rxd4 {[%clk 00:06:58]} {[%emt 00:01:24]} Rxf3 {[%clk
00:23:31]} {[%emt 00:00:06]} 30. Rd8 {[%clk 00:06:08]} {[%emt 00:01:20]} b5
{[%clk 00:21:44]} {[%emt 00:02:18]} 31. Bd3+ {[%clk 00:06:06]} {[%emt
00:00:32]} Kg7 {[%clk 00:21:04]} {[%emt 00:01:08]} 32. Re1 {[%clk 00:05:37]}
{[%emt 00:01:00]} Rf8 {[%clk 00:20:56]} {[%emt 00:00:37]} 33. Re7+ {[%clk
00:05:24]} {[%emt 00:00:45]} Kf6 {[%clk 00:20:31]} {[%emt 00:00:55]} 34. Rxf8+
{[%clk 00:05:30]} {[%emt 00:00:24]} Kxe7 {[%emt 00:00:14]} 35. Rh8 {[%clk
00:05:39]} {[%emt 00:00:12]} 1-0

[Event "Swedish Chess Championship 2019: Weekend 1"]
[Site "Stiga Sports Arena, Arenatorget 1, Eskilstuna, Sweden"]
[Date "2019.07.07"]
[Round "4.6"]
[White "Eriksson, Joel"]
[Black "Namini, Armin"]
[Result "0-1"]
[TimeControl "90 minutes + 30 seconds per move from move one"]
[WhiteFideId "1729233"]
[BlackFideId "1706322"]
[WhiteElo "1998"]
[BlackElo "2241"]

1. d4 {[%clk 01:30:47]} Nf6 {[%clk 01:30:55]} {[%emt 00:00:15]} 2. Bg5 {[%clk
01:31:12]} {[%emt 00:00:07]} c5 {[%clk 01:31:20]} {[%emt 00:00:05]} 3. Nc3
{[%clk 01:30:57]} {[%emt 00:00:46]} Qa5 {[%clk 01:29:29]} {[%emt 00:02:21]} 4.
Bxf6 {[%clk 01:30:47]} {[%emt 00:00:40]} gxf6 {[%clk 01:29:51]} {[%emt
00:00:08]} 5. d5 {[%clk 01:30:52]} {[%emt 00:00:25]} b5 {[%clk 01:27:40]}
{[%emt 00:02:41]} 6. Qd2 {[%clk 01:17:23]} {[%emt 00:13:59]} d6 {[%clk
01:26:10]} {[%emt 00:01:59]} 7. e3 {[%clk 01:16:03]} {[%emt 00:01:51]} a6
{[%clk 01:26:20]} {[%emt 00:00:19]} 8. Nge2 {[%clk 01:14:57]} {[%emt 00:01:35]}
Nd7 {[%clk 01:25:44]} {[%emt 00:01:06]} 9. Nf4 {[%clk 01:10:34]} {[%emt
00:04:53]} f5 {[%clk 01:19:28]} {[%emt 00:06:45]} 10. Nce2 {[%clk 00:59:58]}
{[%emt 00:11:06]} Qxd2+ {[%clk 01:18:24]} {[%emt 00:01:35]} 11. Kxd2 {[%clk
00:58:15]} {[%emt 00:02:13]} Nf6 {[%clk 01:17:55]} {[%emt 00:00:59]} 12. c4
{[%clk 00:46:24]} {[%emt 00:12:22]} e5 {[%clk 01:01:06]} {[%emt 00:17:18]} 13.
Nh3 {[%clk 00:45:19]} {[%emt 00:01:34]} bxc4 {[%clk 00:55:06]} {[%emt
00:06:31]} 14. Nc3 {[%clk 00:45:02]} {[%emt 00:00:47]} Rg8 {[%clk 00:55:20]}
{[%emt 00:00:16]} 15. Rg1 {[%clk 00:39:31]} {[%emt 00:06:02]} Rb8 {[%clk
00:54:22]} {[%emt 00:01:28]} 16. Kc2 {[%clk 00:37:55]} {[%emt 00:02:06]} f4
{[%clk 00:54:30]} {[%emt 00:00:22]} 17. Bxc4 {[%clk 00:36:50]} {[%emt
00:01:35]} f3 {[%clk 00:50:51]} {[%emt 00:04:09]} 18. g4 {[%clk 00:28:24]}
{[%emt 00:08:55]} Rb4 {[%clk 00:36:23]} {[%emt 00:15:00]} 19. b3 {[%clk
00:25:55]} {[%emt 00:03:00]} Bxg4 {[%clk 00:34:36]} {[%emt 00:02:16]} 20. Bf1
{[%clk 00:21:11]} {[%emt 00:05:12]} Bf5+ {[%clk 00:31:24]} {[%emt 00:03:45]} 21.
Kb2 {[%clk 00:20:23]} {[%emt 00:01:18]} Rh4 {[%clk 00:22:43]} {[%emt 00:09:10]}
22. Rxg8 {[%clk 00:19:20]} {[%emt 00:01:32]} Nxg8 {[%clk 00:23:08]} {[%emt
00:00:05]} 23. Ng5 {[%clk 00:17:11]} {[%emt 00:02:40]} e4 {[%clk 00:21:49]}
{[%emt 00:01:50]} 24. Bxa6 {[%clk 00:16:07]} {[%emt 00:01:34]} h6 {[%clk
00:17:42]} {[%emt 00:04:36]} 25. Nxf3 {[%clk 00:15:45]} {[%emt 00:00:52]} exf3
{[%clk 00:18:05]} {[%emt 00:00:07]} 26. e4 {[%clk 00:15:54]} {[%emt 00:00:20]}
Bxe4 {[%clk 00:11:58]} {[%emt 00:06:38]} 27. Re1 {[%clk 00:16:16]} {[%emt
00:00:07]} Bg7 {[%clk 00:11:17]} {[%emt 00:01:11]} 28. Bd3 {[%clk 00:16:19]}
{[%emt 00:00:27]} f5 {[%clk 00:11:39]} {[%emt 00:00:08]} 29. a4 {[%clk
00:16:28]} {[%emt 00:00:22]} Ne7 {[%clk 00:11:21]} {[%emt 00:00:47]} 30. Kc2
{[%clk 00:15:48]} {[%emt 00:01:09]} Bxc3 {[%clk 00:10:48]} {[%emt 00:01:04]} 31.
Kxc3 {[%clk 00:16:10]} {[%emt 00:00:08]} Kd7 {[%clk 00:08:45]} {[%emt
00:02:32]} 32. a5 {[%clk 00:15:40]} {[%emt 00:01:00]} Nxd5+ {[%clk 00:08:48]}
{[%emt 00:00:27]} 33. Kc4 {[%clk 00:15:29]} {[%emt 00:00:42]} Bxd3+ {[%clk
00:08:46]} {[%emt 00:00:32]} 34. Kxd3 {[%clk 00:15:50]} {[%emt 00:00:09]} Rd4+
{[%clk 00:07:48]} {[%emt 00:01:29]} 0-1

[Event "Swedish Chess Championship 2019: Weekend 1"]
[Site "Stiga Sports Arena, Arenatorget 1, Eskilstuna, Sweden"]
[Date "2019.07.07"]
[Round "4.7"]
[White "Thollin, Robert"]
[Black "Johansson, Roy"]
[Result "1/2-1/2"]
[TimeControl "90 minutes + 30 seconds per move from move one"]
[WhiteFideId "1701630"]
[BlackFideId "1745972"]
[WhiteElo "1983"]
[BlackElo "1932"]

1. e4 {[%clk 01:29:54]} {[%emt 00:01:05]} e6 {[%clk 01:30:52]} {[%emt
00:00:08]} 2. d4 {[%clk 01:29:22]} {[%emt 00:01:02]} d5 {[%clk 01:31:15]}
{[%emt 00:00:08]} 3. exd5 {[%clk 01:29:18]} {[%emt 00:00:33]} exd5 {[%clk
01:31:38]} {[%emt 00:00:08]} 4. Nc3 {[%clk 01:29:08]} {[%emt 00:00:40]} Nc6
{[%clk 01:30:50]} {[%emt 00:01:17]} 5. Be3 {[%clk 01:26:49]} {[%emt 00:02:48]}
Be6 {[%clk 01:30:42]} {[%emt 00:00:40]} 6. Nf3 {[%clk 01:21:40]} {[%emt
00:05:38]} h6 {[%clk 01:29:09]} {[%emt 00:02:04]} 7. g3 {[%clk 01:18:09]}
{[%emt 00:04:01]} Nf6 {[%clk 01:28:37]} {[%emt 00:01:03]} 8. Bg2 {[%clk
01:18:24]} {[%emt 00:00:14]} Be7 {[%clk 01:26:58]} {[%emt 00:02:10]} 9. h3
{[%clk 01:12:43]} {[%emt 00:06:09]} a6 {[%clk 01:22:52]} {[%emt 00:04:37]} 10.
a3 {[%clk 01:07:39]} {[%emt 00:05:34]} Bd6 {[%clk 01:18:02]} {[%emt 00:05:20]}
11. Ng1 {[%emt 00:03:39]} 1/2-1/2

[Event "Swedish Chess Championship 2019: Weekend 1"]
[Site "Stiga Sports Arena, Arenatorget 1, Eskilstuna, Sweden"]
[Date "2019.07.07"]
[Round "4.8"]
[White "Mitra, Akash"]
[Black "Wallenas, Joakim"]
[Result "1-0"]
[TimeControl "90 minutes + 30 seconds per move from move one"]
[WhiteFideId "1726714"]
[BlackFideId "1728458"]
[WhiteElo "1957"]
[BlackElo "1991"]

1. e4 {[%clk 01:29:26]} {[%emt 00:01:32]} e5 {[%clk 01:30:49]} {[%emt
00:00:11]} 2. Nf3 {[%clk 01:28:56]} {[%emt 00:01:00]} Nc6 {[%clk 01:31:01]}
{[%emt 00:00:18]} 3. Bb5 {[%clk 01:28:55]} {[%emt 00:00:30]} Bc5 {[%clk
01:30:40]} {[%emt 00:00:52]} 4. d3 {[%clk 01:28:19]} {[%emt 00:01:06]} d6
{[%clk 01:29:29]} {[%emt 00:01:41]} 5. c3 {[%clk 01:28:09]} {[%emt 00:00:40]}
Bd7 {[%clk 01:28:09]} {[%emt 00:01:51]} 6. Ba4 {[%clk 01:27:41]} {[%emt
00:00:58]} Nf6 {[%clk 01:26:08]} {[%emt 00:02:31]} 7. Nbd2 {[%clk 01:25:39]}
{[%emt 00:02:30]} a6 {[%clk 01:25:04]} {[%emt 00:01:35]} 8. Nf1 {[%clk
01:25:42]} {[%emt 00:00:27]} O-O {[%clk 01:22:22]} {[%emt 00:03:12]} 9. h3
{[%clk 01:25:01]} {[%emt 00:01:11]} b5 {[%clk 01:20:06]} {[%emt 00:02:46]} 10.
Bc2 {[%clk 01:25:28]} {[%emt 00:00:03]} Re8 {[%clk 01:15:47]} {[%emt 00:04:49]}
11. g4 {[%clk 01:24:42]} {[%emt 00:01:16]} Kh8 {[%clk 01:04:48]} {[%emt
00:11:30]} 12. Ng3 {[%clk 01:21:41]} {[%emt 00:03:30]} d5 {[%clk 01:00:33]}
{[%emt 00:04:44]} 13. g5 {[%clk 01:18:47]} {[%emt 00:03:24]} dxe4 {[%clk
00:56:53]} {[%emt 00:04:11]} 14. gxf6 {[%clk 01:18:55]} {[%emt 00:00:21]} exf3
{[%clk 00:56:39]} {[%emt 00:00:45]} 15. fxg7+ {[%clk 01:19:20]} {[%emt
00:00:06]} Kxg7 {[%clk 00:50:57]} {[%emt 00:06:11]} 16. Ne4 {[%clk 01:13:09]}
{[%emt 00:06:40]} Be7 {[%clk 00:48:22]} {[%emt 00:03:06]} 17. Qxf3 {[%clk
01:12:24]} {[%emt 00:01:14]} f6 {[%clk 00:47:32]} {[%emt 00:01:21]} 18. Rg1+
{[%clk 01:11:17]} {[%emt 00:01:37]} Kh8 {[%clk 00:44:52]} {[%emt 00:03:10]} 19.
Bb3 {[%clk 01:11:29]} {[%emt 00:00:18]} f5 {[%clk 00:40:00]} {[%emt 00:05:22]}
20. Bh6 {[%clk 01:10:06]} {[%emt 00:01:52]} Bf6 {[%clk 00:38:42]} {[%emt
00:01:49]} 21. Qg2 {[%clk 01:07:45]} {[%emt 00:02:50]} Qe7 {[%clk 00:34:54]}
{[%emt 00:04:19]} 22. Nxf6 {[%clk 01:07:44]} {[%emt 00:00:32]} 1-0

[Event "Swedish Chess Championship 2019: Weekend 1"]
[Site "Stiga Sports Arena, Arenatorget 1, Eskilstuna, Sweden"]
[Date "2019.07.07"]
[Round "4.9"]
[White "Eriksson, Hans"]
[Black "Johansson, Mathias"]
[Result "0-1"]
[TimeControl "90 minutes + 30 seconds per move from move one"]
[WhiteFideId "1737040"]
[BlackFideId "1723324"]
[WhiteElo "1936"]
[BlackElo "1912"]

1. e4 {[%clk 01:30:59]} {[%emt 00:04:38]} e6 {[%clk 01:30:54]} {[%emt
00:00:07]} 2. d4 {[%clk 01:31:24]} {[%emt 00:00:05]} d5 {[%clk 01:31:19]}
{[%emt 00:00:05]} 3. e5 {[%clk 01:31:50]} {[%emt 00:00:04]} c5 {[%clk
01:31:44]} {[%emt 00:00:04]} 4. c3 {[%clk 01:32:16]} {[%emt 00:00:04]} Nc6
{[%clk 01:32:09]} {[%emt 00:00:04]} 5. Nf3 {[%clk 01:32:43]} {[%emt 00:00:03]}
Bd7 {[%clk 01:32:24]} {[%emt 00:00:15]} 6. Be2 {[%clk 01:33:08]} {[%emt
00:00:05]} f6 {[%clk 01:32:19]} {[%emt 00:00:36]} 7. O-O {[%clk 01:33:17]}
{[%emt 00:00:21]} Qc7 {[%clk 01:32:03]} {[%emt 00:00:46]} 8. Re1 {[%clk
01:31:57]} {[%emt 00:01:50]} O-O-O {[%clk 01:31:39]} {[%emt 00:00:54]} 9. dxc5
{[%clk 01:29:45]} {[%emt 00:02:43]} Bxc5 {[%clk 01:27:52]} {[%emt 00:04:16]} 10.
b4 {[%clk 01:29:59]} {[%emt 00:00:16]} Be7 {[%clk 01:27:48]} {[%emt 00:00:34]}
11. exf6 {[%clk 01:26:04]} {[%emt 00:04:26]} Bxf6 {[%clk 01:27:27]} {[%emt
00:00:50]} 12. Bg5 {[%clk 01:24:25]} {[%emt 00:02:09]} Nge7 {[%clk 01:19:49]}
{[%emt 00:08:08]} 13. Bxf6 {[%clk 01:24:27]} {[%emt 00:00:29]} gxf6 {[%clk
01:20:12]} {[%emt 00:00:07]} 14. Na3 {[%clk 01:23:56]} {[%emt 00:01:01]} Qf4
{[%clk 01:02:36]} {[%emt 00:18:06]} 15. g3 {[%clk 01:20:28]} {[%emt 00:03:58]}
Rhg8 {[%clk 01:00:26]} {[%emt 00:02:40]} 16. Kh1 {[%clk 01:19:40]} {[%emt
00:01:18]} Qf5 {[%clk 00:49:31]} {[%emt 00:11:26]} 17. Nb5 {[%clk 01:13:38]}
{[%emt 00:06:32]} Be8 {[%clk 00:49:46]} {[%emt 00:00:14]} 18. Nbd4 {[%clk
01:12:52]} {[%emt 00:01:16]} Nxd4 {[%clk 00:49:07]} {[%emt 00:01:08]} 19. Nxd4
{[%clk 01:12:54]} {[%emt 00:00:28]} Qxf2 {[%clk 00:47:20]} {[%emt 00:02:18]} 20.
Rf1 {[%clk 01:08:54]} {[%emt 00:04:31]} Qe3 {[%clk 00:47:14]} {[%emt 00:00:35]}
21. Rxf6 {[%clk 01:05:16]} {[%emt 00:04:08]} Nf5 {[%clk 00:44:52]} {[%emt
00:02:52]} 22. Nxf5 {[%clk 00:52:59]} {[%emt 00:12:47]} exf5 {[%clk 00:45:07]}
{[%emt 00:00:15]} 23. Qf1 {[%clk 00:50:51]} {[%emt 00:02:38]} d4 {[%clk
00:29:54]} {[%emt 00:15:44]} 24. Qxf5+ {[%clk 00:26:26]} {[%emt 00:24:55]} Kb8
{[%clk 00:30:14]} {[%emt 00:00:10]} 25. Bf3 {[%clk 00:11:18]} {[%emt 00:15:37]}
dxc3 {[%clk 00:24:28]} {[%emt 00:06:16]} 26. Qxh7 {[%clk 00:11:22]} {[%emt
00:00:26]} Bc6 {[%clk 00:22:59]} {[%emt 00:01:58]} 27. Bxc6 {[%clk 00:11:34]}
{[%emt 00:00:19]} bxc6 {[%clk 00:23:24]} {[%emt 00:00:05]} 28. Raf1 {[%clk
00:11:34]} {[%emt 00:00:29]} Qd4 {[%clk 00:18:53]} {[%emt 00:05:01]} 29. Rf7
{[%clk 00:10:02]} {[%emt 00:02:03]} Rh8 {[%clk 00:15:30]} {[%emt 00:03:52]} 30.
Qc2 {[%clk 00:05:36]} {[%emt 00:04:55]} Qd2 {[%clk 00:15:28]} {[%emt 00:00:32]}
31. R7f2 {[%clk 00:05:47]} {[%emt 00:00:19]} Qd5+ {[%clk 00:10:10]} {[%emt
00:05:48]} 32. Kg1 {[%clk 00:05:55]} {[%emt 00:00:22]} Qd4 {[%clk 00:10:25]}
{[%emt 00:00:15]} 33. Kh1 {[%clk 00:05:17]} {[%emt 00:01:09]} Rh6 {[%clk
00:09:39]} {[%emt 00:01:16]} 34. Rf8 {[%clk 00:05:00]} {[%emt 00:00:47]} Rxf8
{[%clk 00:07:43]} {[%emt 00:02:26]} 35. Rxf8+ {[%clk 00:05:26]} {[%emt
00:00:04]} Kb7 {[%clk 00:08:00]} {[%emt 00:00:13]} 36. Rf4 {[%clk 00:04:32]}
{[%emt 00:01:23]} Qe3 {[%clk 00:05:11]} {[%emt 00:03:20]} 37. Rf7+ {[%clk
00:03:21]} {[%emt 00:01:40]} Kb6 {[%clk 00:05:09]} {[%emt 00:00:33]} 38. Qf2
{[%clk 00:01:39]} {[%emt 00:02:13]} Qxf2 {[%clk 00:05:18]} {[%emt 00:00:21]} 39.
Rxf2 {[%clk 00:02:05]} {[%emt 00:00:03]} Rd6 {[%clk 00:05:44]} {[%emt
00:00:04]} 40. Rc2 {[%clk 00:02:22]} {[%emt 00:00:13]} Rd1+ {[%clk 00:06:09]}
{[%emt 00:00:04]} 0-1

[Event "Swedish Chess Championship 2019: Weekend 1"]
[Site "Stiga Sports Arena, Arenatorget 1, Eskilstuna, Sweden"]
[Date "2019.07.07"]
[Round "4.10"]
[White "Svedberg, Hans"]
[Black "Johansson, Sven"]
[Result "1-0"]
[TimeControl "90 minutes + 30 seconds per move from move one"]
[WhiteFideId "1705113"]
[BlackFideId "1716301"]
[WhiteElo "1993"]
[BlackElo "1927"]

1. e4 {[%clk 01:30:23]} {[%emt 00:00:36]} d6 {[%clk 01:30:56]} {[%emt
00:00:04]} 2. d4 {[%clk 01:30:29]} {[%emt 00:00:23]} Nf6 {[%clk 01:31:22]}
{[%emt 00:00:05]} 3. Nc3 {[%clk 01:30:46]} {[%emt 00:00:12]} Nbd7 {[%clk
01:31:49]} {[%emt 00:00:04]} 4. f4 {[%clk 01:28:34]} {[%emt 00:02:41]} e5
{[%clk 01:32:14]} {[%emt 00:00:05]} 5. Nf3 {[%clk 01:26:46]} {[%emt 00:02:17]}
exd4 {[%clk 01:31:48]} {[%emt 00:00:57]} 6. Nxd4 {[%clk 01:25:24]} {[%emt
00:01:52]} Be7 {[%clk 01:32:03]} {[%emt 00:00:15]} 7. Be2 {[%clk 01:17:15]}
{[%emt 00:08:37]} O-O {[%clk 01:30:33]} {[%emt 00:02:01]} 8. O-O {[%clk
01:11:09]} {[%emt 00:06:35]} Nc5 {[%clk 01:23:14]} {[%emt 00:07:50]} 9. Bf3
{[%clk 01:07:53]} {[%emt 00:03:45]} c6 {[%clk 01:18:41]} {[%emt 00:05:04]} 10.
a4 {[%clk 01:05:07]} {[%emt 00:03:15]} d5 {[%clk 01:08:01]} {[%emt 00:11:12]}
11. e5 {[%clk 00:55:35]} {[%emt 00:10:01]} Nfe4 {[%clk 01:07:19]} {[%emt
00:01:12]} 12. Bxe4 {[%clk 00:35:22]} {[%emt 00:20:42]} Nxe4 {[%clk 01:04:56]}
{[%emt 00:02:52]} 13. f5 {[%clk 00:23:06]} {[%emt 00:12:45]} Bc5 {[%clk
01:01:55]} {[%emt 00:03:32]} 14. Nxe4 {[%clk 00:16:08]} {[%emt 00:07:27]} dxe4
{[%clk 01:02:09]} {[%emt 00:00:17]} 15. c3 {[%clk 00:16:17]} {[%emt 00:00:21]}
Re8 {[%clk 00:56:49]} {[%emt 00:05:50]} 16. b4 {[%clk 00:13:30]} {[%emt
00:03:16]} Bb6 {[%clk 00:57:01]} {[%emt 00:00:18]} 17. f6 {[%clk 00:09:50]}
{[%emt 00:04:10]} Rxe5 {[%clk 00:51:49]} {[%emt 00:05:43]} 18. Be3 {[%clk
00:08:34]} {[%emt 00:01:45]} a5 {[%clk 00:48:05]} {[%emt 00:04:14]} 19. b5
{[%clk 00:05:37]} {[%emt 00:03:26]} c5 {[%clk 00:44:36]} {[%emt 00:04:00]} 20.
Nc2 {[%clk 00:03:47]} {[%emt 00:02:20]} Qd3 {[%clk 00:42:32]} {[%emt 00:02:34]}
21. Bf4 {[%clk 00:02:55]} {[%emt 00:01:21]} Rf5 {[%clk 00:36:05]} {[%emt
00:06:56]} 22. Qc1 {[%clk 00:01:02]} {[%emt 00:02:23]} Rxf6 {[%clk 00:35:44]}
{[%emt 00:00:52]} 23. Rd1 {[%clk 00:01:02]} {[%emt 00:00:29]} Qxc3 {[%clk
00:34:31]} {[%emt 00:01:43]} 24. Ra3 {[%clk 00:01:27]} {[%emt 00:00:04]} Qc4
{[%clk 00:34:38]} {[%emt 00:00:23]} 25. Be5 {[%clk 00:01:31]} {[%emt 00:00:26]}
Rg6 {[%clk 00:31:46]} {[%emt 00:03:23]} 26. Qd2 {[%clk 00:00:45]} {[%emt
00:01:16]} Bg4 {[%clk 00:30:09]} {[%emt 00:02:07]} 27. Ne3 {[%clk 00:00:47]}
{[%emt 00:00:28]} Qb4 {[%clk 00:30:12]} {[%emt 00:00:28]} 28. Nxg4 {[%clk
00:00:40]} {[%emt 00:00:37]} Qxd2 {[%clk 00:27:59]} {[%emt 00:02:43]} 29. Rxd2
{[%clk 00:01:04]} {[%emt 00:00:06]} Rxg4 {[%clk 00:28:23]} {[%emt 00:00:07]} 30.
Rd7 {[%clk 00:00:48]} {[%emt 00:00:45]} c4+ {[%clk 00:24:53]} {[%emt 00:04:00]}
31. Kf1 {[%clk 00:01:16]} {[%emt 00:00:02]} Bc5 {[%clk 00:24:58]} {[%emt
00:00:25]} 32. Rc3 {[%clk 00:01:14]} {[%emt 00:00:31]} b6 {[%clk 00:23:43]}
{[%emt 00:01:46]} 33. Rxc4 {[%clk 00:01:28]} {[%emt 00:00:15]} Re8 {[%clk
00:14:29]} {[%emt 00:09:44]} 34. Rxc5 {[%clk 00:01:13]} {[%emt 00:00:45]} bxc5
{[%clk 00:14:28]} {[%emt 00:00:31]} 35. b6 {[%clk 00:01:37]} {[%emt 00:00:06]}
Rg6 {[%clk 00:12:34]} {[%emt 00:02:25]} 36. Bc7 {[%clk 00:01:47]} {[%emt
00:00:19]} e3 {[%clk 00:08:44]} {[%emt 00:04:21]} 37. b7 {[%clk 00:02:06]}
{[%emt 00:00:10]} e2+ {[%clk 00:09:04]} {[%emt 00:00:10]} 38. Ke1 {[%clk
00:01:47]} {[%emt 00:00:50]} Rf6 {[%clk 00:09:15]} {[%emt 00:00:19]} 39. Re7
{[%clk 00:01:46]} {[%emt 00:00:31]} 1-0

[Event "Swedish Chess Championship 2019: Weekend 1"]
[Site "Stiga Sports Arena, Arenatorget 1, Eskilstuna, Sweden"]
[Date "2019.07.07"]
[Round "4.11"]
[White "Forsberg, Andre"]
[Black "Bjornvall, Tord"]
[Result "0-1"]
[TimeControl "90 minutes + 30 seconds per move from move one"]
[WhiteFideId "1724193"]
[BlackFideId "1716557"]
[WhiteElo "1982"]
[BlackElo "1997"]

1. e4 {[%clk 01:30:55]} {[%emt 00:00:05]} d6 {[%clk 01:30:53]} {[%emt
00:00:08]} 2. d4 {[%clk 01:31:01]} {[%emt 00:00:24]} Nf6 {[%clk 01:31:14]}
{[%emt 00:00:07]} 3. Nc3 {[%clk 01:31:27]} {[%emt 00:00:05]} Nbd7 {[%clk
01:31:35]} {[%emt 00:00:08]} 4. Be3 {[%clk 01:29:50]} {[%emt 00:02:07]} e5
{[%clk 01:27:52]} {[%emt 00:04:13]} 5. f3 {[%clk 01:27:26]} {[%emt 00:02:55]}
Be7 {[%clk 01:27:39]} {[%emt 00:00:42]} 6. Qd2 {[%clk 01:26:37]} {[%emt
00:01:19]} c6 {[%clk 01:27:57]} {[%emt 00:00:12]} 7. O-O-O {[%clk 01:25:13]}
{[%emt 00:01:54]} Qa5 {[%clk 01:27:35]} {[%emt 00:00:51]} 8. g4 {[%clk
01:22:26]} {[%emt 00:03:18]} b5 {[%clk 01:25:20]} {[%emt 00:02:45]} 9. Kb1
{[%clk 01:16:21]} {[%emt 00:06:35]} b4 {[%clk 01:20:09]} {[%emt 00:05:40]} 10.
Nce2 {[%clk 01:16:09]} {[%emt 00:00:43]} Nb6 {[%clk 01:16:43]} {[%emt
00:03:55]} 11. Nc1 {[%clk 01:15:58]} {[%emt 00:00:41]} Be6 {[%clk 01:08:38]}
{[%emt 00:08:35]} 12. Nh3 {[%clk 01:01:40]} {[%emt 00:14:47]} Bc4 {[%clk
01:01:55]} {[%emt 00:07:12]} 13. b3 {[%clk 00:52:48]} {[%emt 00:09:24]} Bxf1
{[%clk 00:59:13]} {[%emt 00:03:11]} 14. Rhxf1 {[%clk 00:52:56]} {[%emt
00:00:22]} c5 {[%clk 00:55:00]} {[%emt 00:04:42]} 15. d5 {[%clk 00:40:10]}
{[%emt 00:13:17]} O-O {[%clk 00:49:05]} {[%emt 00:06:24]} 16. Nf2 {[%clk
00:36:54]} {[%emt 00:03:47]} Nfd7 {[%clk 00:41:30]} {[%emt 00:08:06]} 17. Nfd3
{[%clk 00:36:27]} {[%emt 00:00:58]} Qb5 {[%clk 00:40:44]} {[%emt 00:01:15]} 18.
h4 {[%clk 00:29:40]} {[%emt 00:07:18]} a5 {[%clk 00:40:07]} {[%emt 00:01:07]}
19. Nb2 {[%clk 00:25:45]} {[%emt 00:04:25]} Rfc8 {[%clk 00:36:55]} {[%emt
00:03:41]} 20. c4 {[%clk 00:20:56]} {[%emt 00:05:20]} bxc3 {[%clk 00:36:51]}
{[%emt 00:00:34]} 21. Qxc3 {[%clk 00:21:17]} {[%emt 00:00:10]} c4 {[%clk
00:35:26]} {[%emt 00:01:53]} 22. Rf2 {[%clk 00:15:06]} {[%emt 00:06:41]} a4
{[%clk 00:35:27]} {[%emt 00:00:29]} 23. Rdd2 {[%clk 00:07:53]} {[%emt
00:07:44]} cxb3 {[%clk 00:34:57]} {[%emt 00:00:59]} 24. Qd3 {[%clk 00:07:51]}
{[%emt 00:00:32]} Qa5 {[%clk 00:26:49]} {[%emt 00:08:37]} 25. a3 {[%clk
00:07:38]} {[%emt 00:00:44]} Rc3 {[%clk 00:26:13]} {[%emt 00:01:04]} 26. Qf1
{[%clk 00:07:21]} {[%emt 00:00:48]} Rxe3 {[%clk 00:26:14]} {[%emt 00:00:30]} 27.
Nd1 {[%clk 00:06:02]} {[%emt 00:01:50]} Rxf3 {[%clk 00:22:53]} {[%emt
00:03:50]} 28. Rxf3 {[%clk 00:04:00]} {[%emt 00:02:33]} Qxd2 {[%clk 00:23:11]}
{[%emt 00:00:11]} 29. Rf2 {[%clk 00:04:00]} {[%emt 00:00:30]} Qd4 {[%clk
00:23:22]} {[%emt 00:00:18]} 0-1